[Event "Early-Titled-Tuesday-Blitz-May-28-2024"]
[Site "Chess.com"]
[Date "2024.05.28"]
[Round "11"]
[White "TomLiu777"]
[Black "RobertoJBM"]
[Result "0-1"]
[WhiteElo "2415"]
[BlackElo "2773"]
[TimeControl "180+1"]
[EndTime "10:09:31 PDT"]
[Termination "RobertoJBM won by resignation"]

1. d4 {[%clk 0:02:55.3]} 1... d5 {[%clk 0:02:59.8]} 2. c4 {[%clk 0:02:54.1]}
2... c6 {[%clk 0:03:00]} 3. cxd5 {[%clk 0:02:47.4]} 3... cxd5 {[%clk 0:02:59.7]}
4. Nc3 {[%clk 0:02:47.6]} 4... Nf6 {[%clk 0:02:59.9]} 5. Bf4 {[%clk 0:02:48.1]}
5... Qb6 {[%clk 0:02:59.7]} 6. e3 {[%clk 0:02:42.5]} 6... Qxb2 {[%clk
0:02:59.1]} 7. Rc1 {[%clk 0:02:41.4]} 7... Nc6 {[%clk 0:02:51.9]} 8. Bd3 {[%clk
0:02:34.1]} 8... a6 {[%clk 0:02:50.9]} 9. Nge2 {[%clk 0:02:32.3]} 9... e6 {[%clk
0:02:44.9]} 10. O-O {[%clk 0:02:30.5]} 10... Qb4 {[%clk 0:02:27.6]} 11. Na4
{[%clk 0:02:12.2]} 11... Nd7 {[%clk 0:02:27.3]} 12. Ng3 {[%clk 0:01:42.7]} 12...
Be7 {[%clk 0:02:17.7]} 13. Nh5 {[%clk 0:01:25.7]} 13... O-O {[%clk 0:02:11.1]}
14. Nxg7 {[%clk 0:00:56.9]} 14... Kxg7 {[%clk 0:02:10.9]} 15. Qh5 {[%clk
0:00:40.7]} 15... f5 {[%clk 0:02:09.6]} 16. Bh6+ {[%clk 0:00:40.4]} 16... Kg8
{[%clk 0:02:07.5]} 17. Qh3 {[%clk 0:00:31.8]} 17... Qxa4 {[%clk 0:01:54]} 18.
Be2 {[%clk 0:00:27.2]} 18... Rf6 {[%clk 0:01:44.7]} 19. Bg5 {[%clk 0:00:20.9]}
19... Rg6 {[%clk 0:01:44.3]} 20. Bxe7 {[%clk 0:00:19.5]} 20... Nxe7 {[%clk
0:01:45.2]} 21. Bh5 {[%clk 0:00:18.4]} 21... Rg7 {[%clk 0:01:43.9]} 22. Qh4
{[%clk 0:00:14.7]} 22... Qa5 {[%clk 0:01:37.8]} 23. Qf4 {[%clk 0:00:14]} 23...
Nf6 {[%clk 0:01:31.3]} 24. Qd6 {[%clk 0:00:10.7]} 24... Nxh5 {[%clk 0:01:08.8]}
25. Rc7 {[%clk 0:00:08.3]} 25... Nc6 {[%clk 0:00:32]} 26. Rxg7+ {[%clk
0:00:07.3]} 26... Nxg7 {[%clk 0:00:27.5]} 27. h4 {[%clk 0:00:05.7]} 27... Qd8
{[%clk 0:00:25.6]} 28. Qg3 {[%clk 0:00:05.3]} 28... Bd7 {[%clk 0:00:21.8]} 29.
h5 {[%clk 0:00:05.4]} 29... Qf6 {[%clk 0:00:21.7]} 30. Rc1 {[%clk 0:00:03.8]}
30... Rc8 {[%clk 0:00:21]} 31. Qd6 {[%clk 0:00:04]} 31... Be8 {[%clk 0:00:19.1]}
32. h6 {[%clk 0:00:03.8]} 32... Qxh6 {[%clk 0:00:18]} 33. Rb1 {[%clk 0:00:04.3]}
33... b5 {[%clk 0:00:16.6]} 34. a4 {[%clk 0:00:04]} 34... b4 {[%clk 0:00:15.9]}
35. a5 {[%clk 0:00:03.2]} 35... Qf6 {[%clk 0:00:14.9]} 36. Rc1 {[%clk
0:00:03.7]} 36... Kf7 {[%clk 0:00:12.2]} 37. Qg3 {[%clk 0:00:03.5]} 37... h5
{[%clk 0:00:11.7]} 38. Qd6 {[%clk 0:00:03.7]} 38... Qe7 {[%clk 0:00:11.5]} 39.
Qg3 {[%clk 0:00:03.3]} 39... Nxd4 {[%clk 0:00:09]} 40. Rxc8 {[%clk 0:00:02.5]}
40... Ne2+ {[%clk 0:00:09.1]} 41. Kh2 {[%clk 0:00:03.4]} 41... Nxg3 {[%clk
0:00:09.6]} 42. Kxg3 {[%clk 0:00:04.3]} 42... Qg5+ {[%clk 0:00:09]} 0-1

[Event "Early-Titled-Tuesday-Blitz-May-28-2024"]
[Site "Chess.com"]
[Date "2024.05.28"]
[Round "11"]
[White "Meri-Arabidze"]
[Black "Kirill_Klukin"]
[Result "0-1"]
[WhiteElo "2693"]
[BlackElo "2876"]
[TimeControl "180+1"]
[EndTime "10:09:32 PDT"]
[Termination "Kirill_Klukin won by resignation"]

1. Nf3 {[%clk 0:03:00.9]} 1... c5 {[%clk 0:02:59.4]} 2. c4 {[%clk 0:03:01.4]}
2... g6 {[%clk 0:02:59.4]} 3. Nc3 {[%clk 0:03:00.8]} 3... Bg7 {[%clk 0:02:59.9]}
4. e3 {[%clk 0:02:59.3]} 4... Nf6 {[%clk 0:02:59]} 5. d4 {[%clk 0:02:59.2]} 5...
cxd4 {[%clk 0:02:59.9]} 6. exd4 {[%clk 0:02:59.8]} 6... d5 {[%clk 0:03:00.7]} 7.
c5 {[%clk 0:02:59.6]} 7... O-O {[%clk 0:03:00.3]} 8. Bf4 {[%clk 0:02:58.2]} 8...
Nc6 {[%clk 0:02:58.4]} 9. Bb5 {[%clk 0:02:57.8]} 9... Bg4 {[%clk 0:02:55.4]} 10.
Bxc6 {[%clk 0:02:52.7]} 10... bxc6 {[%clk 0:02:55.5]} 11. h3 {[%clk 0:02:52.2]}
11... Bxf3 {[%clk 0:02:55.4]} 12. Qxf3 {[%clk 0:02:52.4]} 12... Nd7 {[%clk
0:02:56.3]} 13. Be3 {[%clk 0:02:32]} 13... e5 {[%clk 0:02:54.9]} 14. dxe5 {[%clk
0:02:32.3]} 14... Nxe5 {[%clk 0:02:42.9]} 15. Qe2 {[%clk 0:02:29.5]} 15... Re8
{[%clk 0:02:33.3]} 16. O-O {[%clk 0:01:51.4]} 16... Nc4 {[%clk 0:02:28.5]} 17.
Rac1 {[%clk 0:00:52.3]} 17... Qa5 {[%clk 0:02:05.3]} 18. Nd1 {[%clk 0:00:20.5]}
18... Qxa2 {[%clk 0:01:53.6]} 19. Rc2 {[%clk 0:00:20.7]} 19... Rab8 {[%clk
0:01:47.4]} 20. Qd3 {[%clk 0:00:13.6]} 20... Rb3 {[%clk 0:01:08.4]} 21. Nc3
{[%clk 0:00:10.5]} 21... Qa5 {[%clk 0:01:06.5]} 22. Bd4 {[%clk 0:00:10.8]} 22...
Bxd4 {[%clk 0:00:34.4]} 23. Qxd4 {[%clk 0:00:10.7]} 23... Qb4 {[%clk 0:00:35.1]}
24. Ra1 {[%clk 0:00:04.2]} 24... a5 {[%clk 0:00:33.7]} 25. Ra4 {[%clk
0:00:03.5]} 25... Qb8 {[%clk 0:00:33.5]} 26. Ra1 {[%clk 0:00:03.1]} 26... Rxb2
{[%clk 0:00:31.5]} 27. Rxb2 {[%clk 0:00:02.3]} 27... Qxb2 {[%clk 0:00:32.2]} 28.
Rb1 {[%clk 0:00:02.7]} 28... Qd2 {[%clk 0:00:27.8]} 29. Qxd2 {[%clk 0:00:02.2]}
29... Nxd2 {[%clk 0:00:28.7]} 30. Rb6 {[%clk 0:00:01.6]} 30... d4 {[%clk
0:00:28.8]} 31. Na4 {[%clk 0:00:01.5]} 31... Nc4 {[%clk 0:00:27.9]} 32. Rxc6
{[%clk 0:00:01.5]} 32... d3 {[%clk 0:00:28.5]} 33. Nc3 {[%clk 0:00:01.2]} 33...
d2 {[%clk 0:00:28.4]} 34. Kh2 {[%clk 0:00:01.6]} 34... Re1 {[%clk 0:00:19.7]}
35. Rc8+ {[%clk 0:00:01.8]} 35... Kg7 {[%clk 0:00:19.7]} 36. Rd8 {[%clk
0:00:02.7]} 36... Rc1 {[%clk 0:00:18.7]} 37. c6 {[%clk 0:00:02.6]} 37... Rxc3
{[%clk 0:00:18.9]} 38. c7 {[%clk 0:00:03.1]} 38... Nb6 {[%clk 0:00:19.4]} 39.
Rxd2 {[%clk 0:00:02.9]} 39... Rxc7 {[%clk 0:00:19.7]} 40. Rd6 {[%clk 0:00:03.2]}
40... Nc4 {[%clk 0:00:20]} 41. Ra6 {[%clk 0:00:03.2]} 41... Rc5 {[%clk
0:00:20.6]} 42. Ra7 {[%clk 0:00:03.3]} 42... Nb2 {[%clk 0:00:20.7]} 43. h4
{[%clk 0:00:03.5]} 43... h5 {[%clk 0:00:20.5]} 44. g3 {[%clk 0:00:03.9]} 44...
a4 {[%clk 0:00:20.7]} 45. Kg2 {[%clk 0:00:04.8]} 45... Rc3 {[%clk 0:00:20.9]}
46. f3 {[%clk 0:00:04.6]} 46... a3 {[%clk 0:00:20.8]} 47. g4 {[%clk 0:00:05.1]}
47... Nd3 {[%clk 0:00:20.6]} 48. g5 {[%clk 0:00:04.8]} 48... Nb4 {[%clk
0:00:20.8]} 49. Kg3 {[%clk 0:00:04.7]} 49... a2 {[%clk 0:00:21.2]} 50. Kf4
{[%clk 0:00:04.3]} 50... Rc1 {[%clk 0:00:21.4]} 0-1

[Event "Early-Titled-Tuesday-Blitz-May-28-2024"]
[Site "Chess.com"]
[Date "2024.05.28"]
[Round "11"]
[White "Quattroporte300"]
[Black "SoCalJuniorChess"]
[Result "1-0"]
[WhiteElo "2401"]
[BlackElo "2240"]
[TimeControl "180+1"]
[EndTime "10:09:32 PDT"]
[Termination "Quattroporte300 won by resignation"]

1. e4 {[%clk 0:02:58]} 1... d5 {[%clk 0:03:00]} 2. exd5 {[%clk 0:02:57.8]} 2...
Qxd5 {[%clk 0:03:00.9]} 3. Nf3 {[%clk 0:02:58.1]} 3... Bg4 {[%clk 0:02:59.7]} 4.
Be2 {[%clk 0:02:57.8]} 4... c6 {[%clk 0:02:59.1]} 5. O-O {[%clk 0:02:57.5]} 5...
e6 {[%clk 0:02:58.7]} 6. d4 {[%clk 0:02:57.5]} 6... Nf6 {[%clk 0:02:56.3]} 7. c4
{[%clk 0:02:58]} 7... Qd7 {[%clk 0:02:55.1]} 8. Ne5 {[%clk 0:02:41.5]} 8... Bxe2
{[%clk 0:02:51.8]} 9. Nxd7 {[%clk 0:02:39.9]} 9... Bxd1 {[%clk 0:02:49]} 10.
Nxf6+ {[%clk 0:02:40.3]} 10... gxf6 {[%clk 0:02:49.6]} 11. Rxd1 {[%clk
0:02:40.5]} 11... Bd6 {[%clk 0:02:45.8]} 12. Nc3 {[%clk 0:02:40.2]} 12... Nd7
{[%clk 0:02:45.4]} 13. Ne4 {[%clk 0:02:36.7]} 13... Bc7 {[%clk 0:02:41.6]} 14.
Bh6 {[%clk 0:02:22.6]} 14... Rg8 {[%clk 0:02:28.8]} 15. Kf1 {[%clk 0:02:09.6]}
15... O-O-O {[%clk 0:02:28.4]} 16. g3 {[%clk 0:02:08]} 16... Rg6 {[%clk
0:02:27.7]} 17. Be3 {[%clk 0:02:06.9]} 17... h5 {[%clk 0:02:26.4]} 18. h4 {[%clk
0:02:04.6]} 18... Nb6 {[%clk 0:02:22.8]} 19. b3 {[%clk 0:02:03.9]} 19... e5
{[%clk 0:02:23.1]} 20. Nc5 {[%clk 0:01:35.6]} 20... exd4 {[%clk 0:02:19.5]} 21.
Rxd4 {[%clk 0:01:31.1]} 21... f5 {[%clk 0:02:07]} 22. Rad1 {[%clk 0:01:20.4]}
22... Rgd6 {[%clk 0:01:53]} 23. Ke2 {[%clk 0:01:12.1]} 23... Rxd4 {[%clk
0:01:44.8]} 24. Rxd4 {[%clk 0:01:10.3]} 24... Nd7 {[%clk 0:01:42.1]} 25. Nxd7
{[%clk 0:00:57.7]} 25... Rxd7 {[%clk 0:01:43]} 26. Kf3 {[%clk 0:00:27.1]} 26...
Rxd4 {[%clk 0:01:32.8]} 27. Bxd4 {[%clk 0:00:26.9]} 27... b6 {[%clk 0:01:33.7]}
28. Be3 {[%clk 0:00:23.1]} 28... Be5 {[%clk 0:01:29.6]} 29. Bf4 {[%clk
0:00:22.7]} 29... Bd4 {[%clk 0:01:28.8]} 30. Bd6 {[%clk 0:00:17.3]} 30... b5
{[%clk 0:01:28.5]} 31. cxb5 {[%clk 0:00:13.4]} 31... cxb5 {[%clk 0:01:28.8]} 32.
Kf4 {[%clk 0:00:13.8]} 32... Bxf2 {[%clk 0:01:28.5]} 33. Kxf5 {[%clk 0:00:14]}
33... Kd7 {[%clk 0:01:27]} 34. Bb8 {[%clk 0:00:14]} 34... Be3 {[%clk 0:01:04.4]}
35. Bf4 {[%clk 0:00:12.6]} 35... Bxf4 {[%clk 0:00:23.1]} 36. gxf4 {[%clk
0:00:12.2]} 36... a5 {[%clk 0:00:19.5]} 37. Kg5 {[%clk 0:00:12.7]} 37... Ke6
{[%clk 0:00:19.6]} 38. Kxh5 {[%clk 0:00:08]} 38... Kf5 {[%clk 0:00:19.9]} 39.
Kh6 {[%clk 0:00:08]} 39... Kxf4 {[%clk 0:00:20.3]} 40. Kg7 {[%clk 0:00:04.4]}
40... f5 {[%clk 0:00:08.7]} 41. h5 {[%clk 0:00:04.5]} 41... Kg5 {[%clk
0:00:09.4]} 42. h6 {[%clk 0:00:05.1]} 42... f4 {[%clk 0:00:10.1]} 43. h7 {[%clk
0:00:05.8]} 43... f3 {[%clk 0:00:10.7]} 44. h8=Q {[%clk 0:00:06.7]} 44... f2
{[%clk 0:00:11.1]} 45. Qh1 {[%clk 0:00:06.6]} 45... Kf4 {[%clk 0:00:10.9]} 46.
Qf1 {[%clk 0:00:06]} 46... Ke3 {[%clk 0:00:10.6]} 47. Qxb5 {[%clk 0:00:06.4]}
47... Kd2 {[%clk 0:00:10.1]} 48. Qxa5+ {[%clk 0:00:06.7]} 48... Kc2 {[%clk
0:00:10.4]} 49. Qf5+ {[%clk 0:00:07.2]} 1-0

[Event "Early-Titled-Tuesday-Blitz-May-28-2024"]
[Site "Chess.com"]
[Date "2024.05.28"]
[Round "11"]
[White "FlemingA"]
[Black "gabduschew"]
[Result "1-0"]
[WhiteElo "2477"]
[BlackElo "2323"]
[TimeControl "180+1"]
[EndTime "10:09:40 PDT"]
[Termination "FlemingA won by resignation"]

1. f4 {[%clk 0:02:56.4]} 1... e5 {[%clk 0:02:59.9]} 2. fxe5 {[%clk 0:02:56.5]}
2... d6 {[%clk 0:02:58.9]} 3. Nf3 {[%clk 0:02:56.4]} 3... dxe5 {[%clk
0:02:58.5]} 4. e4 {[%clk 0:02:56.8]} 4... Bc5 {[%clk 0:02:50.5]} 5. Bc4 {[%clk
0:02:53.7]} 5... Bg4 {[%clk 0:02:47.7]} 6. Bxf7+ {[%clk 0:02:47.4]} 6... Kf8
{[%clk 0:02:27.3]} 7. Bb3 {[%clk 0:02:41.7]} 7... Nf6 {[%clk 0:02:24.6]} 8. Qe2
{[%clk 0:02:39.9]} 8... Nc6 {[%clk 0:02:24]} 9. c3 {[%clk 0:02:39.2]} 9... Qd7
{[%clk 0:02:06.8]} 10. h3 {[%clk 0:02:24.1]} 10... Bh5 {[%clk 0:02:04.5]} 11. g4
{[%clk 0:02:24.5]} 11... Bg6 {[%clk 0:02:04.9]} 12. d3 {[%clk 0:02:22]} 12...
Rd8 {[%clk 0:02:03.8]} 13. Bc2 {[%clk 0:02:19.8]} 13... Ke7 {[%clk 0:01:42.5]}
14. a4 {[%clk 0:02:08.1]} 14... Rhf8 {[%clk 0:01:41.8]} 15. b4 {[%clk
0:02:07.9]} 15... Bd6 {[%clk 0:01:39.6]} 16. Nbd2 {[%clk 0:02:04.1]} 16... Kf7
{[%clk 0:01:37]} 17. Bb3+ {[%clk 0:02:02.8]} 17... Ke7 {[%clk 0:01:35.8]} 18.
Nc4 {[%clk 0:02:03]} 18... Nxb4 {[%clk 0:01:14.8]} 19. Nxd6 {[%clk 0:01:51.7]}
19... Qxd6 {[%clk 0:00:39.5]} 20. Ba3 {[%clk 0:01:46.9]} 20... a5 {[%clk
0:00:33.2]} 21. cxb4 {[%clk 0:01:42]} 21... axb4 {[%clk 0:00:34.1]} 22. Bb2
{[%clk 0:01:38.8]} 22... Qxd3 {[%clk 0:00:34]} 23. Bc2 {[%clk 0:01:10.4]} 23...
Qxe2+ {[%clk 0:00:19.2]} 24. Kxe2 {[%clk 0:01:11.3]} 24... Bxe4 {[%clk
0:00:17.9]} 25. Bxe4 {[%clk 0:00:57.3]} 25... Nxe4 {[%clk 0:00:18.8]} 26. Rhd1
{[%clk 0:00:57.3]} 26... Rxd1 {[%clk 0:00:13.8]} 27. Rxd1 {[%clk 0:00:55.6]}
27... Ng3+ {[%clk 0:00:06.8]} 28. Ke3 {[%clk 0:00:54.6]} 28... e4 {[%clk
0:00:07.3]} 29. Nd4 {[%clk 0:00:52.1]} 29... c5 {[%clk 0:00:07.5]} 30. Nf5+
{[%clk 0:00:51.3]} 30... Nxf5+ {[%clk 0:00:06.7]} 31. gxf5 {[%clk 0:00:52.2]}
31... Rxf5 {[%clk 0:00:07.4]} 32. Kxe4 {[%clk 0:00:52.9]} 32... Rf2 {[%clk
0:00:07.2]} 33. Bxg7 {[%clk 0:00:50.2]} 33... Ra2 {[%clk 0:00:06.5]} 34. Rd5
{[%clk 0:00:41.3]} 34... Rxa4 {[%clk 0:00:06.1]} 35. Rxc5 {[%clk 0:00:41.7]}
35... b3+ {[%clk 0:00:05.6]} 36. Kf3 {[%clk 0:00:38.4]} 36... Rb4 {[%clk
0:00:02.3]} 37. Bb2 {[%clk 0:00:36.1]} 37... Kd6 {[%clk 0:00:01.5]} 38. Rh5
{[%clk 0:00:35.9]} 38... b5 {[%clk 0:00:01.6]} 39. Rxh7 {[%clk 0:00:35.4]} 39...
Rc4 {[%clk 0:00:01.6]} 40. Rh6+ {[%clk 0:00:33.7]} 40... Kc5 {[%clk 0:00:02.1]}
41. Rh8 {[%clk 0:00:28.4]} 41... Rc2 {[%clk 0:00:02.2]} 42. Rc8+ {[%clk
0:00:28.9]} 42... Kb4 {[%clk 0:00:02.3]} 43. Rxc2 {[%clk 0:00:26.7]} 43... bxc2
{[%clk 0:00:03.2]} 44. h4 {[%clk 0:00:27.3]} 44... Kb3 {[%clk 0:00:03.8]} 45.
Bc1 {[%clk 0:00:27.4]} 45... Kc3 {[%clk 0:00:04.4]} 46. h5 {[%clk 0:00:26.8]}
46... b4 {[%clk 0:00:05.3]} 47. h6 {[%clk 0:00:27.3]} 47... b3 {[%clk
0:00:06.2]} 48. h7 {[%clk 0:00:27.6]} 48... b2 {[%clk 0:00:06.8]} 49. h8=Q+
{[%clk 0:00:28.3]} 49... Kd3 {[%clk 0:00:05.2]} 50. Bxb2 {[%clk 0:00:23.3]}
50... c1=Q {[%clk 0:00:04.9]} 51. Qd4+ {[%clk 0:00:22.5]} 51... Kc2 {[%clk
0:00:04.3]} 52. Qc3+ {[%clk 0:00:21.9]} 52... Kb1 {[%clk 0:00:01]} 53. Qxc1+
{[%clk 0:00:22.4]} 53... Ka2 {[%clk 0:00:01.9]} 54. Qa1+ {[%clk 0:00:22.5]}
54... Kb3 {[%clk 0:00:02.8]} 55. Qa3+ {[%clk 0:00:22.6]} 55... Kc2 {[%clk
0:00:03.7]} 1-0

[Event "Early-Titled-Tuesday-Blitz-May-28-2024"]
[Site "Chess.com"]
[Date "2024.05.28"]
[Round "11"]
[White "KNVB"]
[Black "theoneandonlydaaevik"]
[Result "1-0"]
[WhiteElo "2776"]
[BlackElo "2615"]
[TimeControl "180+1"]
[EndTime "10:09:43 PDT"]
[Termination "KNVB won on time"]

1. e4 {[%clk 0:03:00.9]} 1... c5 {[%clk 0:02:57.8]} 2. Nf3 {[%clk 0:03:00.6]}
2... e6 {[%clk 0:02:57.5]} 3. c3 {[%clk 0:02:59.3]} 3... d5 {[%clk 0:02:56.3]}
4. exd5 {[%clk 0:02:59]} 4... Qxd5 {[%clk 0:02:56]} 5. d4 {[%clk 0:02:59]} 5...
Nf6 {[%clk 0:02:55.5]} 6. Bb5+ {[%clk 0:02:57]} 6... Bd7 {[%clk 0:02:38]} 7. Na3
{[%clk 0:02:55.6]} 7... a6 {[%clk 0:02:22.1]} 8. Be2 {[%clk 0:02:42.6]} 8...
cxd4 {[%clk 0:01:45.3]} 9. Nc4 {[%clk 0:02:37.5]} 9... Bc5 {[%clk 0:01:44.9]}
10. cxd4 {[%clk 0:02:03.8]} 10... Ba7 {[%clk 0:01:32.9]} 11. Nfe5 {[%clk
0:02:04.3]} 11... Bc6 {[%clk 0:01:20.1]} 12. Bf3 {[%clk 0:01:55.5]} 12... Qxd4
{[%clk 0:01:20]} 13. Nd6+ {[%clk 0:01:02.4]} 13... Ke7 {[%clk 0:01:16.9]} 14.
Qxd4 {[%clk 0:00:58.1]} 14... Bxd4 {[%clk 0:01:16.4]} 15. Ndxf7 {[%clk
0:00:47.7]} 15... Bxf3 {[%clk 0:01:05.4]} 16. Nxf3 {[%clk 0:00:39.8]} 16... Kxf7
{[%clk 0:00:56.3]} 17. Nxd4 {[%clk 0:00:39.7]} 17... e5 {[%clk 0:00:56.2]} 18.
Nf5 {[%clk 0:00:36.3]} 18... Rd8 {[%clk 0:00:55.7]} 19. O-O {[%clk 0:00:12.9]}
19... Nc6 {[%clk 0:00:55.9]} 20. b3 {[%clk 0:00:07.8]} 20... Nd4 {[%clk
0:00:49.5]} 21. Ne3 {[%clk 0:00:03.4]} 21... Rac8 {[%clk 0:00:26.8]} 22. Bb2
{[%clk 0:00:03.1]} 22... b5 {[%clk 0:00:27.4]} 23. Rfe1 {[%clk 0:00:02.8]} 23...
Rd7 {[%clk 0:00:24.6]} 24. Kf1 {[%clk 0:00:03.1]} 24... e4 {[%clk 0:00:18.6]}
25. Rad1 {[%clk 0:00:03]} 25... Rcd8 {[%clk 0:00:17.6]} 26. h3 {[%clk
0:00:03.2]} 26... Ne6 {[%clk 0:00:13.1]} 27. Rc1 {[%clk 0:00:03.4]} 27... Nf4
{[%clk 0:00:12]} 28. Bxf6 {[%clk 0:00:02.5]} 28... gxf6 {[%clk 0:00:11.9]} 29.
Nf5 {[%clk 0:00:02.8]} 29... Nd3 {[%clk 0:00:11.6]} 30. Rcd1 {[%clk 0:00:02.5]}
30... Nxe1 {[%clk 0:00:11.4]} 31. Rxe1 {[%clk 0:00:03.4]} 31... Rd1 {[%clk
0:00:11.4]} 32. Ng3 {[%clk 0:00:03.6]} 32... R8d2 {[%clk 0:00:07.3]} 33. Nxe4
{[%clk 0:00:03.1]} 33... Rxe1+ {[%clk 0:00:07.5]} 34. Kxe1 {[%clk 0:00:04]}
34... Rxa2 {[%clk 0:00:08.2]} 35. g4 {[%clk 0:00:03.5]} 35... Ke6 {[%clk
0:00:07.9]} 36. Kd1 {[%clk 0:00:02.9]} 36... Ke5 {[%clk 0:00:08.3]} 37. f3
{[%clk 0:00:02.9]} 37... Kf4 {[%clk 0:00:06.9]} 38. Nxf6 {[%clk 0:00:03]} 38...
Kxf3 {[%clk 0:00:07.3]} 39. Nxh7 {[%clk 0:00:03.4]} 39... Rh2 {[%clk 0:00:05.2]}
40. Kc1 {[%clk 0:00:02.8]} 40... Rxh3 {[%clk 0:00:04.5]} 41. Ng5+ {[%clk
0:00:02.9]} 41... Kxg4 {[%clk 0:00:03.4]} 42. Nxh3 {[%clk 0:00:03.8]} 42... Kxh3
{[%clk 0:00:03.9]} 43. Kd2 {[%clk 0:00:03.5]} 43... a5 {[%clk 0:00:02.9]} 44.
Ke3 {[%clk 0:00:03.1]} 1-0

[Event "Early-Titled-Tuesday-Blitz-May-28-2024"]
[Site "Chess.com"]
[Date "2024.05.28"]
[Round "11"]
[White "xasid81"]
[Black "the_chess_child"]
[Result "0-1"]
[WhiteElo "2602"]
[BlackElo "2886"]
[TimeControl "180+1"]
[EndTime "10:09:49 PDT"]
[Termination "the_chess_child won by resignation"]

1. b3 {[%clk 0:03:00.9]} 1... Nf6 {[%clk 0:02:58.4]} 2. Bb2 {[%clk 0:03:00.7]}
2... g6 {[%clk 0:02:59.3]} 3. Bxf6 {[%clk 0:03:00.6]} 3... exf6 {[%clk
0:03:00.2]} 4. c4 {[%clk 0:03:01.3]} 4... d5 {[%clk 0:03:00.4]} 5. cxd5 {[%clk
0:03:00.3]} 5... Qxd5 {[%clk 0:03:01.3]} 6. Nc3 {[%clk 0:03:01.1]} 6... Qd8
{[%clk 0:03:02]} 7. Nf3 {[%clk 0:02:59.8]} 7... Ba3 {[%clk 0:03:00.3]} 8. Qc2
{[%clk 0:02:57.5]} 8... O-O {[%clk 0:02:59.7]} 9. d3 {[%clk 0:02:51.9]} 9... a6
{[%clk 0:02:53.7]} 10. Nb1 {[%clk 0:02:39.8]} 10... Bb4+ {[%clk 0:02:52.2]} 11.
Nbd2 {[%clk 0:02:39.3]} 11... Nc6 {[%clk 0:02:50.9]} 12. a3 {[%clk 0:02:37.7]}
12... Bd6 {[%clk 0:02:49.7]} 13. e3 {[%clk 0:02:33.4]} 13... Re8 {[%clk
0:02:48.8]} 14. Be2 {[%clk 0:02:33]} 14... Bf5 {[%clk 0:02:48.8]} 15. O-O {[%clk
0:02:31.7]} 15... h5 {[%clk 0:02:48.1]} 16. Rfd1 {[%clk 0:02:26.7]} 16... Kg7
{[%clk 0:02:46.4]} 17. Qc3 {[%clk 0:02:18.8]} 17... Rc8 {[%clk 0:02:40.6]} 18.
d4 {[%clk 0:02:18.4]} 18... Nb8 {[%clk 0:02:26]} 19. Bd3 {[%clk 0:02:13.8]}
19... Be6 {[%clk 0:02:24.6]} 20. Bc4 {[%clk 0:02:11.4]} 20... Bf5 {[%clk
0:02:23.4]} 21. Bd3 {[%clk 0:02:08.6]} 21... Bg4 {[%clk 0:02:23.4]} 22. h3
{[%clk 0:02:06.9]} 22... Be6 {[%clk 0:02:23.3]} 23. Bc4 {[%clk 0:01:55.1]} 23...
Bd7 {[%clk 0:02:12.5]} 24. Bd5 {[%clk 0:01:50.7]} 24... c6 {[%clk 0:02:11]} 25.
Bc4 {[%clk 0:01:50.7]} 25... c5 {[%clk 0:02:10.9]} 26. d5 {[%clk 0:01:26.9]}
26... b5 {[%clk 0:02:10.1]} 27. Bf1 {[%clk 0:01:24.4]} 27... Qe7 {[%clk
0:02:09.2]} 28. e4 {[%clk 0:01:19.3]} 28... Rcd8 {[%clk 0:01:53.8]} 29. a4
{[%clk 0:01:18.1]} 29... c4 {[%clk 0:01:40.9]} 30. bxc4 {[%clk 0:01:13.7]} 30...
b4 {[%clk 0:01:41]} 31. Qc2 {[%clk 0:01:10.2]} 31... a5 {[%clk 0:01:34.2]} 32.
Nb3 {[%clk 0:01:09.7]} 32... Na6 {[%clk 0:01:31.9]} 33. Nxa5 {[%clk 0:01:09.2]}
33... Nc5 {[%clk 0:01:27.7]} 34. Re1 {[%clk 0:01:01.3]} 34... Ra8 {[%clk
0:01:24.1]} 35. Nc6 {[%clk 0:00:57.2]} 35... Bxc6 {[%clk 0:01:23.4]} 36. dxc6
{[%clk 0:00:58.1]} 36... b3 {[%clk 0:01:22.5]} 37. Qc3 {[%clk 0:00:53.8]} 37...
Qc7 {[%clk 0:01:19.9]} 38. a5 {[%clk 0:00:44.9]} 38... Qxc6 {[%clk 0:01:15.4]}
39. Nd4 {[%clk 0:00:43.4]} 39... Be5 {[%clk 0:01:11.4]} 40. Qe3 {[%clk 0:00:26]}
40... Qd6 {[%clk 0:01:04.4]} 41. Nxb3 {[%clk 0:00:11.8]} 41... Nxb3 {[%clk
0:01:01.8]} 42. Qxb3 {[%clk 0:00:11.7]} 42... Bxa1 {[%clk 0:01:01.7]} 43. Rxa1
{[%clk 0:00:12.6]} 43... Rxe4 {[%clk 0:01:01.5]} 44. Qb7 {[%clk 0:00:10.7]}
44... Ree8 {[%clk 0:00:58.8]} 45. a6 {[%clk 0:00:11.1]} 45... Reb8 {[%clk
0:00:57.6]} 46. Qd5 {[%clk 0:00:11.3]} 46... Rxa6 {[%clk 0:00:56.3]} 47. Rd1
{[%clk 0:00:08.4]} 47... Qxd5 {[%clk 0:00:53.7]} 48. cxd5 {[%clk 0:00:08.8]}
48... Rd6 {[%clk 0:00:53.8]} 49. g3 {[%clk 0:00:08.5]} 49... f5 {[%clk
0:00:54.1]} 50. Bg2 {[%clk 0:00:08.8]} 50... h4 {[%clk 0:00:53.3]} 51. gxh4
{[%clk 0:00:08.9]} 51... Rh8 {[%clk 0:00:52.5]} 52. Kf1 {[%clk 0:00:07.4]} 52...
Rxh4 {[%clk 0:00:52.1]} 53. Rd2 {[%clk 0:00:07]} 53... Kf6 {[%clk 0:00:52.6]}
54. Ke2 {[%clk 0:00:07]} 54... Rh8 {[%clk 0:00:52.3]} 55. Kf1 {[%clk 0:00:06.4]}
55... Re8 {[%clk 0:00:51.2]} 56. h4 {[%clk 0:00:06.2]} 56... Rb6 {[%clk
0:00:49.3]} 57. f4 {[%clk 0:00:04.2]} 57... Rb4 {[%clk 0:00:46.7]} 58. Kf2
{[%clk 0:00:04.2]} 58... Rxf4+ {[%clk 0:00:46.6]} 59. Bf3 {[%clk 0:00:04.6]}
59... Rxh4 {[%clk 0:00:46]} 60. Kg3 {[%clk 0:00:03.6]} 60... Kg5 {[%clk
0:00:45.9]} 61. d6 {[%clk 0:00:03.6]} 61... f4+ {[%clk 0:00:46.1]} 62. Kg2
{[%clk 0:00:03.8]} 62... Rhh8 {[%clk 0:00:46.4]} 63. d7 {[%clk 0:00:01.1]} 63...
Rd8 {[%clk 0:00:46.6]} 64. Bc6 {[%clk 0:00:01.8]} 64... f5 {[%clk 0:00:46.8]}
65. Re2 {[%clk 0:00:02]} 65... Rh7 {[%clk 0:00:46.5]} 66. Re8 {[%clk 0:00:02.9]}
66... Rdxd7 {[%clk 0:00:46.3]} 67. Bxd7 {[%clk 0:00:03.8]} 67... Rxd7 {[%clk
0:00:46.6]} 68. Rd8 {[%clk 0:00:04.7]} 68... Rxd8 {[%clk 0:00:46.9]} 0-1